fUST/lending_fUST_20240120
["ID","MTS","AMOUNT","RATE_DAILY","PERIOD"]
[312247136,1705707878163,1109.19428477,0.00015492,2]
[312247137,1705707885639,1275.30976545,0.00015492,2]
[312247138,1705707887617,683.87536543,0.00015492,2]
[312247139,1705707891502,431.28709768,0.00015492,2]
[312247140,1705707892138,977.39211162,0.00015492,2]
[312247141,1705707907621,565.47961221,0.00015492,2]
[312247142,1705707934337,174.98540883,0.00016377,2]
[312247143,1705707946209,-1468.00454349,0.00016472,2]
[312247144,1705707946230,-4811.28224285,0.00016472,2]
[312247145,1705707946251,-9.28085353,0.00016472,2]
[312247146,1705707959703,1468.00454349,0.00012354,2]
[312247147,1705707981702,164.27754523,0.00012354,2]
[312247148,1705707995869,2623.2008338,0.00015471,2]
[312247149,1705708019150,888.52821772,0.00016374,2]
[312247151,1705708053085,-561.34972168,0.00016458,2]
[312247152,1705708053105,-154.86062544,0.00016458,2]
[312247153,1705708053125,-452.47030798,0.00016458,2]
[312247154,1705708053145,-679.75558308,0.00016458,2]
[312247155,1705708053166,-555.04009963,0.00016458,2]
[312247156,1705708053186,-875.93915164,0.00016459,2]
[312247157,1705708053209,-294.70821043,0.00016459,2]
[312247158,1705708053230,-3484.00738958,0.00016459,2]
[312247159,1705708053249,-1589.24944099,0.00016459,2]
[312247160,1705708053272,-15906.57674273,0.00016459,2]
[312247161,1705708053291,-154.86062544,0.0001646,2]
[312247162,1705708053311,-154.86062544,0.0001646,2]
[312247163,1705708053331,-199.14321435,0.0001646,2]
[312247164,1705708053350,-2813.43161407,0.0001646,2]
[312247165,1705708053370,-2038.05199526,0.0001646,2]
[312247166,1705708053391,-5180.65166756,0.0001646,2]
[312247167,1705708053411,-166.90570443,0.00016461,2]
[312247168,1705708053430,-154.86062544,0.00016461,2]
[312247169,1705708053449,-760.31790163,0.00016461,2]
[312247170,1705708053469,-616.42934825,0.00016461,2]
[312247171,1705708053488,-156.87167711,0.00016461,2]
[312247172,1705708053507,-154.86062544,0.00016461,2]
[312247173,1705708053527,-588.02510206,0.00016461,2]
[312247174,1705708053547,-21675.6082244,0.00016461,2]
[312247175,1705708053566,-4698.66437663,0.00016461,2]
[312247176,1705708053585,-1602.24051039,0.00016461,2]
[312247177,1705708053605,-2834.78752031,0.00016461,2]
[312247178,1705708053626,-154.86062544,0.00016462,2]
[312247179,1705708053646,-301.77611122,0.00016462,2]
[312247180,1705708053666,-1578.52419014,0.00016462,2]
[312247181,1705708053687,-4811.28224285,0.00016462,2]
[312247182,1705708053707,-20891.20723106,0.00016462,2]
[312247183,1705708053727,-323.39599469,0.00016463,2]
[312247184,1705708053748,-903.13044819,0.00016463,2]
[312247185,1705708053768,-8757.15684933,0.00016463,2]
[312247186,1705708053787,-607.13204194,0.00016464,2]
[312247187,1705708053807,-711.43114331,0.00016464,2]
[312247188,1705708053827,-246.07285378,0.00016465,2]
[312247189,1705708053847,-594.84589351,0.00016465,2]
[312247190,1705708053867,-154.86062544,0.00016465,2]
[312247191,1705708053887,-253.97986618,0.00016465,2]
[312247192,1705708053908,-260.72897054,0.00016466,2]
[312247193,1705708053927,-19775.73741684,0.0001647,2]
[312247194,1705708053947,-1847.48861005,0.0001647,2]
[312247195,1705708053968,-194118.38928039,0.00016472,2]
[312247196,1705708065186,21675.6082244,0.00016292,2]
[312247197,1705708066401,1762.93217702,0.00016128,2]
[312247198,1705708073075,760.31790163,0.0001481,2]
[312247199,1705708074186,4698.66437663,0.00015633,2]
[312247200,1705708074971,5180.65166756,0.00016291,2]
[312247201,1705708081193,7253.61100458,0.00016291,2]
[312247202,1705708092185,4698.66437663,0.00015633,2]
[312247203,1705708093086,256.96679847,0.0001481,2]
[312247204,1705708112180,4698.66437663,0.00015633,2]
[312247205,1705708128367,781.5,0.00015629,2]
[312247206,1705708134625,948.557555,0.00015584,2]
[312247207,1705708161092,-154.86062544,0.00016451,2]
[312247208,1705708161115,-34.64111135,0.00016451,2]
[312247209,1705708165090,-3093.5839729,0.00016451,2]
[312247210,1705708165110,-1589.24944099,0.00016452,2]
[312247211,1705708165130,-594.84589351,0.00016452,2]
[312247212,1705708165149,-2834.78752031,0.00016452,2]
[312247213,1705708165171,-154.86062544,0.00016452,2]
[312247214,1705708165192,-607.13204194,0.00016452,2]
[312247215,1705708165213,-156.87167711,0.00016452,2]
[312247216,1705708165232,-154.86062544,0.00016452,2]
[312247217,1705708165255,-588.02510206,0.00016453,2]
[312247218,1705708165275,-301.77611122,0.00016453,2]
[312247219,1705708165294,-2038.05199526,0.00016453,2]
[312247220,1705708165315,-246.07285378,0.00016454,2]
[312247221,1705708165335,-8573.78066468,0.00016454,2]
[312247222,1705708166088,-1912.02144288,0.00016454,2]
[312247223,1705708167088,-10378.41578274,0.00016454,2]
[312247224,1705708167110,-875.93915164,0.00016454,2]
[312247225,1705708167130,-170.79924496,0.00016454,2]
[312247226,1705708167151,-7956.19039627,0.00016455,2]
[312247227,1705708167171,-211.88668177,0.00016456,2]
[312247228,1705708167192,-294.70821043,0.00016456,2]
[312247229,1705708167214,-1577.30200728,0.00016456,2]
[312247230,1705708167235,-4800.62550921,0.00016456,2]
[312247231,1705708169085,-9519.57813531,0.00016456,2]
[312247232,1705708169108,-2060.84094292,0.00016456,2]
[312247233,1705708169128,-227.62690524,0.00016456,2]
[312247234,1705708169150,-200.0,0.00016456,2]
[312247235,1705708169172,-260.72897054,0.00016457,2]
[312247236,1705708169195,-155.01545201,0.00016457,2]
[312247237,1705708169216,-679.26105306,0.00016457,2]
[312247238,1705708169237,-273.10059141,0.00016457,2]
[312247239,1705708169259,-228.31745033,0.00016457,2]
[312247240,1705708169278,-903.13044819,0.00016457,2]
[312247241,1705708169299,-453.90506005,0.00016457,2]
[312247242,1705708169318,-616.22732514,0.00016457,2]
[312247243,1705708169341,-219.56301904,0.00016457,2]
[312247244,1705708169361,-582.68336298,0.00016457,2]
[312247245,1705708169382,-2813.43161407,0.00016457,2]
[312247246,1705708169402,-172.15969274,0.00016457,2]
[312247247,1705708169422,-270.42412996,0.00016457,2]
[312247248,1705708169444,-420.66788977,0.00016457,2]
[312247249,1705708169463,-276.83160006,0.00016457,2]
[312247250,1705708169483,-4006.03753219,0.00016457,2]
[312247251,1705708169503,-167.20323473,0.00016457,2]
[312247252,1705708169524,-89928.11634718,0.00016472,2]
[312247253,1705708169544,-155.25095813,0.00016474,2]
[312247254,1705708169563,-4664.72972202,0.0001648,2]
[312247255,1705708169583,-155.24775222,0.0001648,2]
[312247256,1705708169604,-333.04395168,0.0001659,2]
[312247257,1705708169626,-155.23850692,0.00016591,2]
[312247258,1705708169645,-275.43231332,0.00016591,2]
[312247259,1705708169666,-518.34359506,0.00016591,2]
[312247260,1705708169685,-155.10885318,0.00016598,2]
[312247261,1705708169707,-646.70745347,0.00016598,2]
[312247262,1705708169727,-155.37889533,0.00016598,2]
[312247263,1705708169748,-272.77597099,0.00016598,2]
[312247264,1705708169767,-277.93951097,0.00016598,2]
[312247265,1705708169787,-263.25668499,0.00016598,2]
[312247266,1705708169807,-155.18445706,0.00016598,2]
[312247267,1705708169827,-843.09332408,0.00016598,2]
[312247268,1705708169847,-243.88530595,0.00016599,2]
[312247269,1705708169866,-155.92855729,0.00016599,2]
[312247270,1705708169888,-265.32889701,0.00016599,2]
[312247271,1705708169907,-154.9690062,0.00016599,2]
[312247272,1705708169927,-2033.48363052,0.00016599,2]
[312247273,1705708169947,-229.22498899,0.00016601,2]
[312247274,1705708169967,-181.34567251,0.00016601,2]
[312247275,1705708169987,-282.56006932,0.00016601,2]
[312247276,1705708170007,-2102.11817883,0.00016609,2]
[312247277,1705708170029,-200.0,0.00017295,2]
[312247278,1705708170049,-2273.6749403,0.00017486,2]
[312247279,1705708170070,-9220.04971293,0.00017898,2]
[312247293,1705708233052,-398.05301093,0.00017896,2]
[312247295,1705708233062,-594.84589351,0.00017896,2]
[312247297,1705708233071,-166.52197584,0.00017896,2]
[312247299,1705708233080,-197.06033241,0.00017897,2]
[312247301,1705708233090,-155.1857894,0.00017897,2]
[312247303,1705708233100,-1308.82765777,0.00017898,2]
[312247304,1705708233110,-127353.98745788,0.00017898,2]
[312247832,1705708238028,-154.86062544,0.00017895,2]
[312247834,1705708238038,-56238.32819769,0.00017898,2]
[312247836,1705708238047,-154.87609912,0.00018,2]
[312247838,1705708238056,-375.16526378,0.00018399,2]
[312247840,1705708238066,-329.24416506,0.00018482,2]
[312247842,1705708238075,-154.98450155,0.00018483,2]
[312247844,1705708238084,-155.04641484,0.00018491,2]
[312247846,1705708238094,-154.92253873,0.00018491,2]
[312247848,1705708238103,-154.98444274,0.00018493,2]
[312247850,1705708238112,-317.05432769,0.00018493,2]
[312247852,1705708238121,-484.17660604,0.00018493,2]
[312247854,1705708238130,-517.8862133,0.00018497,2]
[312247856,1705708238139,-177.15191446,0.00018497,2]
[312247858,1705708238148,-154.86062544,0.00018497,2]
[312247860,1705708238157,-10000.0,0.00018501,2]
[312247862,1705708238167,-3429.31994698,0.000189,2]
[312247864,1705708238177,-1581.42371087,0.00019,2]
[312247866,1705708238186,-280.0,0.00019024,2]
[312247868,1705708238195,-170.450179,0.00019178,2]
[312247870,1705708238204,-169.249372,0.00019178,2]
[312247872,1705708238213,-1113.91161195,0.000195,2]
[312247874,1705708238222,-888.52821771,0.00019755,2]
[312247876,1705708238231,-1197.20181474,0.0002,2]
[312247878,1705708238240,-849.76694483,0.0002,2]
[312247881,1705708238250,-154.87609912,0.0002,2]
[312247882,1705708238259,-154.86062544,0.0002,2]
[312247885,1705708238271,-154.86062544,0.0002,2]
[312247887,1705708238284,-162.57415881,0.0002,2]
[312247888,1705708238293,-155.25569736,0.0002,2]
[312247890,1705708238303,-540.68656681,0.0002,2]
[312247892,1705708238312,-391.0,0.00020926,2]
[312247894,1705708238321,-327.3065169,0.00021,2]
[312247898,1705708238341,-1763.93265691,0.00021916,2]
[312247900,1705708238352,-166.666666,0.00021918,2]
[312247902,1705708238362,-293.28439443,0.00022,4]
[312247904,1705708238372,-3963.07176261,0.00022,2]
[312247906,1705708238382,-425.69649895,0.0002243,2]
[312247908,1705708238391,-166.666666,0.00022431,2]
[312247910,1705708238402,-823.86653966,0.00022943,2]
[312247912,1705708238411,-166.666666,0.00022944,2]
[312247914,1705708238421,-200.0,0.00023019,7]
[312247917,1705708238432,-348.0,0.00023019,7]
[312247919,1705708238442,-888.52821771,0.00023136,2]
[312247921,1705708238452,-1506.7751,0.00023237,2]
[312247923,1705708238462,-462.63781527,0.00023286,2]
[312247925,1705708238471,-676.96759119,0.00023286,2]
[312247927,1705708238481,-2102.11817883,0.00023286,2]
[312247929,1705708238490,-283.76650842,0.00023286,2]
[312247931,1705708238501,-300.56308617,0.00023286,2]
[312247933,1705708238512,-155.65695307,0.00023286,2]
[312247935,1705708238522,-1022.19103161,0.00023286,2]
[312247937,1705708238532,-170.43506579,0.00023286,2]
[312247939,1705708238542,-2842.71915457,0.00023286,2]
[312247941,1705708238552,-246.52425823,0.00023287,2]
[312247943,1705708238561,-301.6648831,0.00023287,2]
[312247946,1705708238571,-397.91753558,0.00023287,2]
[312247948,1705708238581,-6818.47744959,0.00023287,2]
[312247950,1705708238590,-500.0,0.00023288,2]
[312247952,1705708238601,-463.78712928,0.00023288,2]
[312247954,1705708238611,-500.0,0.00023288,2]
[312247956,1705708238620,-500.0,0.00023288,2]
[312247957,1705708238630,-500.31715099,0.00023288,2]
[312247959,1705708238640,-500.0,0.00023288,2]
[312247961,1705708238650,-500.0,0.00023288,2]
[312247962,1705708238659,-500.0,0.00023288,2]
[312247964,1705708238669,-500.0,0.00023288,2]
[312247966,1705708238678,-170.93948884,0.00023288,2]
[312247967,1705708238687,-500.0,0.00023288,2]
[312247969,1705708238696,-500.0,0.00023288,2]
[312247970,1705708238706,-500.0,0.00023288,2]
[312247972,1705708238715,-500.0,0.00023288,2]
[312247974,1705708238724,-500.0,0.00023288,2]
[312247975,1705708238733,-294.72581559,0.00023288,2]
[312247977,1705708238742,-500.0,0.00023288,2]
[312247978,1705708238752,-315.80057482,0.00023288,2]
[312247980,1705708238762,-500.0,0.00023288,2]
[312247982,1705708238771,-500.0,0.00023288,2]
[312247983,1705708238783,-500.0,0.00023288,2]
[312247985,1705708238793,-500.0,0.00023288,2]
[312247987,1705708238802,-500.0,0.00023288,2]
[312247988,1705708238813,-500.0,0.00023288,2]
[312247990,1705708238822,-500.0,0.00023288,2]
[312247992,1705708238832,-500.0,0.00023288,2]
[312247993,1705708238841,-500.0,0.00023288,2]
[312247995,1705708238851,-242.93415322,0.00023288,2]
[312247997,1705708238860,-500.0,0.00023288,2]
[312247998,1705708238870,-500.0,0.00023288,2]
[312248000,1705708238880,-500.0,0.00023288,2]
[312248001,1705708238889,-500.0,0.00023288,2]
[312248003,1705708238898,-500.0,0.00023288,2]
[312248005,1705708238907,-500.0,0.00023288,2]
[312248006,1705708238916,-500.0,0.00023288,2]
[312248008,1705708238926,-500.0,0.00023288,2]
[312248010,1705708238935,-500.0,0.00023288,2]
[312248011,1705708238945,-500.0,0.00023288,2]
[312248013,1705708238955,-500.0,0.00023288,2]
[312248015,1705708238964,-218.06748175,0.00023288,2]
[312248017,1705708238974,-166.666666,0.00023456,2]
[312248018,1705708238983,-3429.31994698,0.000239,2]
[312248020,1705708238993,-166.666666,0.00023969,2]
[312248022,1705708239002,-4011.58774012,0.00024,2]
[312248024,1705708239012,-166.666666,0.00024482,2]
[312248025,1705708239021,-1000.0,0.00024657,2]
[312248027,1705708239032,-829.1810316,0.00024657,2]
[312248029,1705708239041,-158.94600393,0.0002495,5]
[312248031,1705708239050,-1045.65136347,0.00025,2]
[312248032,1705708239058,-193.00215354,0.00025,2]
[312248034,1705708239067,-155.058075,0.00025,2]
[312248036,1705708239076,-4719.78899734,0.00025,2]
[312248037,1705708239086,-200.0,0.00025321,7]
[312248039,1705708239095,-200.0,0.00025321,7]
[312248040,1705708239105,-368.0,0.00025321,7]
[312248042,1705708239114,-174.98540881,0.00025661,2]
[312248044,1705708239124,-3910.88074803,0.00026,2]
[312248046,1705708239133,-245.2106015,0.00026274,2]
[312248047,1705708239143,-156.05990121,0.00026336,2]
[312248049,1705708239152,-1762.82733294,0.00026369,2]
[312248051,1705708239161,-1817.0233857,0.0002637,2]
[312248052,1705708239171,-264.03826997,0.00026459,2]
[312248054,1705708239181,-214.0852314,0.00026459,2]
[312248056,1705708239190,-154.87609912,0.00026459,2]
[312248058,1705708239199,-1299.26146621,0.00026459,2]
[312248059,1705708239208,-155.02131266,0.00026459,2]
[312248061,1705708239218,-678.20873721,0.00026468,2]
[312248063,1705708239226,-191.31512244,0.00026468,2]
[312248065,1705708239236,-9814.25742289,0.00026468,2]
[312248066,1705708239245,-154.92253873,0.00026468,2]
[312248068,1705708239254,-163.7019,0.00026468,2]
[312248070,1705708239263,-164.65058158,0.00026468,2]
[312248072,1705708239276,-157.77559155,0.00026468,2]
[312248073,1705708239285,-258.76819595,0.00026469,2]
[312248075,1705708239294,-178.87513889,0.00026469,2]
[312248077,1705708239303,-156.28,0.00026469,2]
[312248078,1705708239314,-260.99609825,0.00026469,2]
[312248080,1705708239324,-3328.44621838,0.00026469,2]
[312248082,1705708239334,-242.99577859,0.00026469,2]
[312248083,1705708239343,-266.64256563,0.00026469,2]
[312248085,1705708239355,-226.32093431,0.00026469,2]
[312248087,1705708239364,-155.34362049,0.0002647,2]
[312248089,1705708239374,-888.52821771,0.00026517,2]
[312248090,1705708239383,-260.0,0.00027,2]
[312248092,1705708239393,-634.21125375,0.00027278,2]
[312248095,1705708239403,-19140.89,0.00027397,3]
[312248097,1705708239412,-15950.75,0.00027397,3]
[312248099,1705708239422,-155.0,0.00027768,2]
[312248101,1705708239431,-200.0,0.00027853,15]
[312248103,1705708239440,-200.0,0.00027853,15]
[312248104,1705708239449,-200.0,0.00027853,15]
[312248106,1705708239459,-200.0,0.00027853,15]
[312248108,1705708239468,-275.0,0.00027853,15]
[312248109,1705708239477,-154.86062544,0.00027898,2]
[312248111,1705708239485,-500.0,0.0002799,2]
[312248113,1705708239494,-500.0,0.0002799,2]
[312248115,1705708239504,-500.0,0.0002799,2]
[312248116,1705708239514,-500.0,0.0002799,2]
[312248118,1705708239523,-500.0,0.0002799,2]
[312248120,1705708239532,-500.0,0.0002799,2]
[312248122,1705708239541,-500.0,0.0002799,2]
[312248123,1705708239551,-500.0,0.0002799,2]
[312248125,1705708239560,-500.0,0.0002799,2]
[312248127,1705708239569,-500.0,0.0002799,2]
[312248128,1705708239578,-500.0,0.0002799,2]
[312248130,1705708239588,-500.0,0.0002799,2]
[312248132,1705708239597,-500.0,0.0002799,2]
[312248133,1705708239606,-500.0,0.0002799,2]
[312248135,1705708239616,-500.0,0.0002799,2]
[312248137,1705708239626,-500.0,0.0002799,2]
[312248139,1705708239635,-500.0,0.0002799,2]
[312248140,1705708239644,-316.39436209,0.0002799,2]
[312248142,1705708239653,-977.54301686,0.00027992,2]
[312248144,1705708239663,-154.86062544,0.00028,10]
[312248146,1705708239672,-290.08228321,0.00028,2]
[312248147,1705708239683,-620.71056269,0.00028642,2]
[312248149,1705708239693,-155.06823002,0.00028701,3]
[312248151,1705708239701,-648.51545401,0.00028767,2]
[312248152,1705708239710,-410.83858145,0.00028767,4]
[312248154,1705708239719,-475.01653594,0.00028767,4]
[312248156,1705708239729,-491.69218414,0.00028767,4]
[312248157,1705708239738,-382.67178203,0.00028767,4]
[312248159,1705708239747,-433.78102858,0.00028767,4]
[312248161,1705708239756,-84860.83660765,0.00028768,2]
[312248163,1705708239766,-3000.0,0.000288,3]
[312248164,1705708239775,-3429.31994698,0.000289,2]
[312248166,1705708239784,-154.86062544,0.00029,2]
[312248168,1705708239795,-1879.41245692,0.00029,2]
[312248169,1705708239804,-155.0,0.00029138,2]
[312248171,1705708239814,-9114.76945328,0.00029448,4]
[312248173,1705708239823,-888.52821771,0.00029898,2]
[312248175,1705708239832,-276000.0,0.00029936,2]
[312248176,1705708239841,-16395.62177469,0.00029999,2]
[312248178,1705708239851,-688.01285151,0.0003,4]
[312248180,1705708239860,-230.98960504,0.0003,4]
[312248181,1705708239868,-682.3767278,0.0003,3]
[312248183,1705708239878,-464.33375401,0.0003,2]
[312248185,1705708239887,-243.97478798,0.0003,4]
[312248187,1705708239896,-2905.0874235,0.0003,7]
[312248188,1705708239905,-549.23714498,0.0003,6]
[312248190,1705708239915,-620.03552813,0.00030074,2]
[312248192,1705708239924,-500.0,0.00030136,2]
[312248193,1705708239933,-206.8857815,0.00030137,2]
[312248195,1705708239942,-199.0432224,0.00030137,2]
[312248197,1705708239952,-199.0432224,0.00030137,2]
[312248199,1705708239960,-199.0432224,0.00030137,2]
[312248200,1705708239970,-199.0432224,0.00030137,2]
[312248202,1705708239978,-199.0432224,0.00030137,2]
[312248203,1705708239988,-199.0432224,0.00030137,2]
[312248205,1705708239997,-199.0432224,0.00030137,2]
[312248207,1705708240006,-199.0432224,0.00030137,2]
[312248209,1705708240016,-199.0432224,0.00030137,2]
[312248210,1705708240025,-227.433515,0.00030137,2]
[312248225,1705708240167,-165.406183,0.00030137,2]
[312248227,1705708240176,-500.0,0.00030273,2]
[312248229,1705708240185,-3000.0,0.000306,14]
[312248231,1705708240195,-200.0,0.00030638,15]
[312248233,1705708240204,-200.0,0.00030638,15]
[312248235,1705708240214,-200.0,0.00030638,15]
[312248237,1705708240223,-200.0,0.00030638,15]
[312248239,1705708240232,-200.0,0.00030638,15]
[312248240,1705708240241,-200.0,0.00030638,15]
[312248241,1705708240250,-171.5,0.00030732,30]
[312248242,1705708240259,-150.5,0.00030742,30]
[312248243,1705708240267,-150.5,0.00030752,30]
[312248244,1705708240279,-436.0,0.00030762,30]
[312248245,1705708240288,-436.0,0.00030772,30]
[312248246,1705708240298,-436.0,0.00030782,30]
[312248247,1705708240306,-273.1,0.0003079,30]
[312248248,1705708240315,-175.06,0.0003079,30]
[312248249,1705708240323,-154.86062544,0.00030998,2]
[312248250,1705708240332,-195.20473695,0.00030998,4]
[312248251,1705708240341,-1026.04916894,0.00030998,2]
[312248252,1705708240350,-4320.19775833,0.00030998,4]
[312248253,1705708240359,-410.47740177,0.00030998,4]
[312248254,1705708240368,-1354.10271366,0.00030998,5]
[312248255,1705708240377,-283.06089695,0.00030998,3]
[312248256,1705708240386,-5152.75793493,0.00030998,2]
[312248257,1705708240395,-2451.9577286,0.00030998,2]
[312248258,1705708240404,-488.19063783,0.00030998,10]
[312248259,1705708240413,-1163.33026946,0.00030998,4]
[312248260,1705708240421,-10776.27206922,0.00030998,4]
[312248261,1705708240430,-547.67132072,0.00030998,4]
[312248262,1705708240439,-154.86062544,0.00030998,14]
[312248263,1705708240448,-155.15231656,0.00030998,4]
[312248264,1705708240457,-534.8672697,0.00030998,4]
[312248265,1705708240466,-300.0,0.00030998,4]
[312248266,1705708240475,-351.22049841,0.00030998,2]
[312248267,1705708240484,-290.34519337,0.00030998,4]
[312248268,1705708240492,-154.86062544,0.00030998,4]
[312248269,1705708240501,-168.00002645,0.00031,2]
[312248270,1705708240510,-5000.0,0.00031018,7]
[312248271,1705708240519,-716.05,0.00031057,2]
[312248272,1705708240527,-716.03,0.00031057,2]
[312248274,1705708240536,-716.03,0.00031057,2]
[312248275,1705708240546,-716.03,0.00031057,2]
[312248276,1705708240555,-716.03,0.00031057,2]
[312248277,1705708240564,-716.03,0.00031057,2]
[312248279,1705708240573,-716.03,0.00031057,2]
[312248281,1705708240583,-716.03,0.00031057,2]
[312248283,1705708240592,-716.05,0.00031057,2]
[312248285,1705708240602,-5000.0,0.00031058,7]
[312248287,1705708240611,-99745.58500712,0.00031058,4]
[312248289,1705708240620,-18918.5682426,0.00031058,4]
[312248291,1705708240629,-5000.0,0.00031058,7]
[312248293,1705708240638,-5000.0,0.00031058,7]
[312248295,1705708240647,-3424.75629782,0.00031058,3]
[312248297,1705708240656,-389.10927241,0.00031059,7]
[312248299,1705708240666,-154.87609912,0.00031103,4]
[312248301,1705708240675,-1740.08077845,0.00031103,4]
[312248303,1705708240684,-259.93145126,0.00031103,4]
[312248305,1705708240694,-309.72125088,0.00031103,4]
[312248307,1705708240703,-1259.40069592,0.00031103,4]
[312248309,1705708240712,-526.47495194,0.00031103,4]
[312248311,1705708240721,-23278.72893696,0.00031103,4]
[312248313,1705708240730,-36946.17544842,0.00031103,4]
[312248315,1705708240740,-165.406183,0.00031288,2]
[312248317,1705708240750,-620.00177641,0.00031578,2]
[312248319,1705708240759,-319.08679849,0.00032,4]
[312248321,1705708240768,-154.86062544,0.00032,4]
[312248323,1705708240777,-620.30818923,0.00032009,2]
[312248325,1705708240787,-165.406183,0.00032438,2]
[312248327,1705708240796,-716.05,0.00032875,2]
[312248329,1705708240806,-250.0,0.00032876,7]
[312248331,1705708240815,-300.19029059,0.00032876,7]
[312248333,1705708240825,-278.27227757,0.00032876,7]
[312248335,1705708240835,-500.0,0.00032876,7]
[312248337,1705708240844,-500.0,0.00032876,7]
[312248339,1705708240854,-503.20461663,0.00032876,7]
[312248341,1705708240863,-500.0,0.00032876,7]
[312248343,1705708240872,-430.84048905,0.00032876,7]
[312248345,1705708240881,-486.85043112,0.00032876,7]
[312248347,1705708240891,-500.0,0.00032876,7]
[312248349,1705708240900,-500.0,0.00032876,7]
[312248351,1705708240909,-500.0,0.00032876,7]
[312248353,1705708240918,-500.0,0.00032876,7]
[312248355,1705708240927,-500.0,0.00032876,7]
[312248357,1705708240937,-500.0,0.00032876,7]
[312248359,1705708240946,-500.0,0.00032876,7]
[312248361,1705708240955,-500.0,0.00032876,7]
[312248363,1705708240964,-471.04436169,0.00032876,7]
[312248365,1705708240974,-500.0,0.00032876,7]
[312248367,1705708240983,-500.0,0.00032876,7]
[312248369,1705708240992,-500.0,0.00032876,7]
[312248371,1705708241001,-500.0,0.00032876,7]
[312248373,1705708241010,-500.0,0.00032876,7]
[312248375,1705708241019,-500.0,0.00032876,7]
[312248377,1705708241028,-500.0,0.00032876,7]
[312248379,1705708241037,-500.0,0.00032876,7]
[312248381,1705708241046,-500.0,0.00032876,7]
[312248383,1705708241056,-500.0,0.00032876,7]
[312248385,1705708241065,-500.0,0.00032876,7]
[312248387,1705708241074,-307.20061491,0.00032876,7]
[312248389,1705708241083,-295.01531049,0.00032876,7]
[312248391,1705708241092,-6762.26543772,0.00033,4]
[312248393,1705708241101,-165.406183,0.00033589,2]
[312248395,1705708241110,-150.0,0.00034117,2]
[312248398,1705708241119,-500.0,0.00034246,7]
[312248400,1705708241128,-38560.35367316,0.00034379,3]
[312248402,1705708241136,-873.86173983,0.00034477,4]
[312248404,1705708241146,-50000.0,0.00034479,7]
[312248406,1705708241154,-50000.0,0.00034493,7]
[312248408,1705708241163,-50000.0,0.00034505,7]
[312248410,1705708241172,-165.406183,0.0003474,2]
[312248412,1705708241182,-174.98540881,0.00034944,7]
[312248414,1705708241191,-2087.28272011,0.00035,4]
[312248416,1705708241200,-3119.50448181,0.00035,19]
[312248418,1705708241209,-154.86062544,0.00035,4]
[312248420,1705708241219,-154.86062544,0.00035,4]
[312248422,1705708241230,-591.76162003,0.00035,2]
[312248424,1705708241241,-201.81838364,0.00035,2]
[312248426,1705708241251,-500.0,0.00035,30]
[312248427,1705708241262,-1273.60431467,0.00035489,2]
[312248429,1705708241273,-14242.70479273,0.000355,14]
[312248431,1705708241282,-5000.0,0.000355,2]
[312248434,1705708241291,-651.07456748,0.000355,4]
[312248436,1705708241300,-5000.0,0.00035593,7]
[312248438,1705708241309,-750.0,0.00035616,7]
[312248440,1705708241318,-287.346468,0.00035616,120]
[312248441,1705708241327,-201.81838364,0.000357,2]
[312248443,1705708241336,-2000.0,0.0003577,2]
[312248445,1705708241346,-165.406183,0.0003589,2]
[312248448,1705708241356,-151.32984646,0.00035928,2]
[312248450,1705708241366,-151.0,0.00035957,4]
[312248452,1705708241375,-160.86925014,0.00035998,4]
[312248453,1705708241384,-1241.4576912,0.00035999,4]
[312248455,1705708241393,-285193.1318375,0.00036,4]
[312248458,1705708241403,-171.0,0.00036,2]
[312248459,1705708241411,-8423.92394316,0.0003625,7]
[312248462,1705708241427,-10202.84952288,0.0003625,7]
[312248464,1705708241438,-618.33180695,0.0003625,7]
[312248524,1705708241978,-432.85647337,0.0003625,7]
[312248648,1705708242957,-9434.69696578,0.00018603,2]